[Event "Titled Tuesday Blitz June 13 Late 2023"]
[White "Rengifo Blancas, Renzo Jhonathan"]
[Black "Kramnik, Vladimir"]
[WhiteFideId "3807185"]
[BlackFideId "4101588"]
[WhiteElo "2085"]
[BlackElo "2703"]
[Result "0-1"]
[Round "2"]
[TimeControl "180+2"]
[Date "2023.06.13"]
[WhiteClock "0:00:19"]
[BlackClock "0:00:14"]
[Board "94"]

1. e4 {[%clk 0:02:56]}  c5 {[%clk 0:02:59]} 2. c3 {[%clk 0:02:56]}  d5 {[%clk 0:02:57]} 3. exd5 {[%clk 0:02:56]}  Qxd5 {[%clk 0:02:58]} 4. d4 {[%clk 0:02:57]}  Nf6 {[%clk 0:02:58]} 5. Nf3 {[%clk 0:02:57]}  Nc6 {[%clk 0:02:58]} 6. Be3 {[%clk 0:02:57]}  Bg4 {[%clk 0:02:52]} 7. Be2 {[%clk 0:02:57]}  cxd4 {[%clk 0:02:45]} 8. cxd4 {[%clk 0:02:57]}  e6 {[%clk 0:02:45]} 9. Nc3 {[%clk 0:02:57]}  Bb4 {[%clk 0:02:39]} 10. h3 {[%clk 0:02:57]}  Bh5 {[%clk 0:02:20]} 11. O-O {[%clk 0:02:57]}  Qa5 {[%clk 0:02:11]} 12. Qb3 {[%clk 0:02:54]}  O-O {[%clk 0:02:10]} 13. Rac1 {[%clk 0:02:45]}  Rfd8 {[%clk 0:01:58]} 14. Rfd1 {[%clk 0:02:44]}  Rac8 {[%clk 0:01:55]} 15. a3 {[%clk 0:02:40]}  Bxc3 {[%clk 0:01:54]} 16. Rxc3 {[%clk 0:02:38]}  Nd5 {[%clk 0:01:51]} 17. Rc5 {[%clk 0:02:36]}  Qc7 {[%clk 0:01:50]} 18. g4 {[%clk 0:02:33]}  Bg6 {[%clk 0:01:49]} 19. Ne5 {[%clk 0:02:31]}  f6 {[%clk 0:01:22]} 20. Nxc6 {[%clk 0:02:18]}  bxc6 {[%clk 0:01:21]} 21. Rdc1 {[%clk 0:02:16]}  Rb8 {[%clk 0:01:20]} 22. Qa2 {[%clk 0:01:27]}  Qe7 {[%clk 0:01:05]} 23. Bf3 {[%clk 0:01:22]}  Bf7 {[%clk 0:01:01]} 24. Rxc6 {[%clk 0:01:02]}  e5 {[%clk 0:00:56]} 25. Qb1 {[%clk 0:00:47]}  Nxe3 {[%clk 0:00:41]} 26. Rc7 {[%clk 0:00:47]}  Qe8 {[%clk 0:00:33]} 27. fxe3 {[%clk 0:00:33]}  exd4 {[%clk 0:00:32]} 28. exd4 {[%clk 0:00:28]}  Qe3+ {[%clk 0:00:32]} 29. Kg2 {[%clk 0:00:28]}  Qd2+ {[%clk 0:00:32]} 30. Kg3 {[%clk 0:00:27]}  Rxb2 {[%clk 0:00:31]} 31. R1c2 {[%clk 0:00:24]}  Rxc2 {[%clk 0:00:25]} 32. Qxc2 {[%clk 0:00:24]}  Qxd4 {[%clk 0:00:24]} 33. Qc5 {[%clk 0:00:23]}  Qxc5 {[%clk 0:00:23]} 34. Rxc5 {[%clk 0:00:23]}  h5 {[%clk 0:00:21]} 35. Rc7 {[%clk 0:00:22]}  hxg4 {[%clk 0:00:19]} 36. hxg4 {[%clk 0:00:22]}  Rd3 {[%clk 0:00:17]} 37. Rc8+ {[%clk 0:00:19]}  Kh7 {[%clk 0:00:16]} 38. Kf4 {[%clk 0:00:19]}  g5+ {[%clk 0:00:14]} 39. Ke4 {[%clk 0:00:19]}  Bg6# {[%clk 0:00:14]} 0-1


[Site "https://www.chess.com"]

[Event "Titled Tuesday Blitz June 13 Late 2023"]
[White "Ribeiro, Matheus Mendes Domingues"]
[Black "Chigaev, Maksim"]
[WhiteFideId "324226923"]
[BlackFideId "4108116"]
[WhiteElo "2142"]
[BlackElo "2561"]
[Result "0-1"]
[Round "2"]
[TimeControl "180+2"]
[Date "2023.06.13"]
[WhiteClock "0:02:15"]
[BlackClock "0:02:29"]
[Board "95"]

1. c4 {[%clk 0:03:00]}  Nf6 {[%clk 0:02:58]} 2. Nc3 {[%clk 0:03:00]}  g6 {[%clk 0:02:58]} 3. e4 {[%clk 0:03:00]}  d6 {[%clk 0:02:59]} 4. d4 {[%clk 0:03:00]}  Bg7 {[%clk 0:03:00]} 5. h3 {[%clk 0:03:00]}  O-O {[%clk 0:03:00]} 6. Be3 {[%clk 0:03:00]}  a5 {[%clk 0:02:59]} 7. g4 {[%clk 0:02:42]}  c5 {[%clk 0:02:54]} 8. d5 {[%clk 0:02:38]}  a4 {[%clk 0:02:40]} 9. Nge2 {[%clk 0:02:36]}  e6 {[%clk 0:02:39]} 10. Ng3 {[%clk 0:02:31]}  exd5 {[%clk 0:02:36]} 11. cxd5 {[%clk 0:02:32]}  a3 {[%clk 0:02:34]} 12. b3 {[%clk 0:02:15]}  Nxg4 {[%clk 0:02:29]} 0-1


[Site "https://www.chess.com"]

[Event "Titled Tuesday Blitz June 13 Late 2023"]
[White "Harsh Suresh"]
[Black "Kielinkei"]
[WhiteFideId "45018464"]
[WhiteElo "2209"]
[BlackElo "2465"]
[Result "1-0"]
[Round "2"]
[TimeControl "180+2"]
[Date "2023.06.13"]
[WhiteClock "0:00:27"]
[BlackClock "0:00:11"]
[Board "97"]

1. d3 {[%clk 0:03:00]}  d5 {[%clk 0:02:58]} 2. e4 {[%clk 0:03:01]}  dxe4 {[%clk 0:02:58]} 3. dxe4 {[%clk 0:03:02]}  Qxd1+ {[%clk 0:02:59]} 4. Kxd1 {[%clk 0:03:03]}  e5 {[%clk 0:02:57]} 5. c3 {[%clk 0:03:02]}  Be6 {[%clk 0:02:54]} 6. Be3 {[%clk 0:03:01]}  Nd7 {[%clk 0:02:49]} 7. Kc2 {[%clk 0:02:59]}  O-O-O {[%clk 0:02:42]} 8. Nd2 {[%clk 0:02:58]}  Bc5 {[%clk 0:02:40]} 9. Bxc5 {[%clk 0:02:51]}  Nxc5 {[%clk 0:02:41]} 10. f3 {[%clk 0:02:51]}  Ne7 {[%clk 0:02:37]} 11. Nb3 {[%clk 0:02:48]}  Na4 {[%clk 0:02:27]} 12. Bb5 {[%clk 0:02:46]}  Nb6 {[%clk 0:02:26]} 13. Na5 {[%clk 0:02:27]}  c6 {[%clk 0:02:14]} 14. Bd3 {[%clk 0:02:20]}  Rd7 {[%clk 0:02:09]} 15. Ne2 {[%clk 0:02:19]}  Rhd8 {[%clk 0:02:10]} 16. Rhd1 {[%clk 0:02:19]}  f6 {[%clk 0:02:09]} 17. Ng3 {[%clk 0:02:17]}  Na4 {[%clk 0:01:58]} 18. Be2 {[%clk 0:02:11]}  Rxd1 {[%clk 0:01:56]} 19. Rxd1 {[%clk 0:02:06]}  Rxd1 {[%clk 0:01:51]} 20. Bxd1 {[%clk 0:02:07]}  Nc5 {[%clk 0:01:35]} 21. Nh5 {[%clk 0:02:03]}  b6 {[%clk 0:01:21]} 22. Nb3 {[%clk 0:02:02]}  Bxb3+ {[%clk 0:01:19]} 23. axb3 {[%clk 0:02:03]}  Ne6 {[%clk 0:01:20]} 24. Be2 {[%clk 0:01:46]}  b5 {[%clk 0:01:12]} 25. g3 {[%clk 0:01:31]}  Ng8 {[%clk 0:01:10]} 26. Bf1 {[%clk 0:01:22]}  Ng5 {[%clk 0:00:49]} 27. h4 {[%clk 0:01:14]}  Nxf3 {[%clk 0:00:41]} 28. Be2 {[%clk 0:01:13]}  Ng1 {[%clk 0:00:36]} 29. Bg4+ {[%clk 0:01:12]}  Kd8 {[%clk 0:00:32]} 30. Nxg7 {[%clk 0:01:12]}  Nh6 {[%clk 0:00:32]} 31. Bh5 {[%clk 0:01:01]}  Nh3 {[%clk 0:00:29]} 32. Kd2 {[%clk 0:00:47]}  Ke7 {[%clk 0:00:25]} 33. Ke3 {[%clk 0:00:43]}  Kf8 {[%clk 0:00:17]} 34. Ne6+ {[%clk 0:00:39]}  Ke7 {[%clk 0:00:17]} 35. Nc5 {[%clk 0:00:39]}  f5 {[%clk 0:00:15]} 36. exf5 {[%clk 0:00:31]}  Nxf5+ {[%clk 0:00:15]} 37. Kf3 {[%clk 0:00:31]}  Kd6 {[%clk 0:00:11]} 38. Ne4+ {[%clk 0:00:27]}  Kd5 {[%clk 0:00:11]} 39. Bf7# {[%clk 0:00:27]} 1-0


[Site "https://www.chess.com"]

[Event "Titled Tuesday Blitz June 13 Late 2023"]
[White "Zavortink, Matt"]
[Black "Schmakel, Sam"]
[WhiteFideId "2034263"]
[BlackFideId "2039311"]
[WhiteElo "2460"]
[BlackElo "2356"]
[Result "1-0"]
[Round "2"]
[TimeControl "180+2"]
[Date "2023.06.13"]
[WhiteClock "0:00:07"]
[BlackClock "0:00:02"]
[Board "98"]

1. Nf3 {[%clk 0:03:00]}  g6 {[%clk 0:02:59]} 2. e4 {[%clk 0:02:58]}  Bg7 {[%clk 0:03:00]} 3. d4 {[%clk 0:02:58]}  d6 {[%clk 0:03:00]} 4. Be2 {[%clk 0:02:58]}  Nc6 {[%clk 0:02:59]} 5. O-O {[%clk 0:02:56]}  e5 {[%clk 0:02:58]} 6. dxe5 {[%clk 0:02:54]}  Nxe5 {[%clk 0:02:58]} 7. Nxe5 {[%clk 0:02:54]}  Bxe5 {[%clk 0:02:58]} 8. f4 {[%clk 0:02:54]}  Bg7 {[%clk 0:02:58]} 9. Nc3 {[%clk 0:02:53]}  Ne7 {[%clk 0:02:55]} 10. f5 {[%clk 0:02:42]}  gxf5 {[%clk 0:02:54]} 11. exf5 {[%clk 0:02:43]}  Bxf5 {[%clk 0:02:54]} 12. Bg5 {[%clk 0:02:40]}  Be6 {[%clk 0:02:50]} 13. Ne4 {[%clk 0:02:31]}  d5 {[%clk 0:02:31]} 14. Nf6+ {[%clk 0:02:20]}  Bxf6 {[%clk 0:02:30]} 15. Bxf6 {[%clk 0:02:21]}  Rg8 {[%clk 0:02:31]} 16. Bd3 {[%clk 0:02:12]}  Qd6 {[%clk 0:02:21]} 17. Bxh7 {[%clk 0:02:04]}  Rg4 {[%clk 0:02:19]} 18. Bxe7 {[%clk 0:01:45]}  Qxe7 {[%clk 0:02:17]} 19. Bf5 {[%clk 0:01:45]}  Rg5 {[%clk 0:01:42]} 20. Bxe6 {[%clk 0:01:37]}  fxe6 {[%clk 0:01:43]} 21. Qd4 {[%clk 0:01:32]}  O-O-O {[%clk 0:01:30]} 22. Qxa7 {[%clk 0:01:31]}  Rdg8 {[%clk 0:01:30]} 23. Rf2 {[%clk 0:01:15]}  b6 {[%clk 0:01:19]} 24. Raf1 {[%clk 0:01:06]}  Qc5 {[%clk 0:01:08]} 25. Kh1 {[%clk 0:00:57]}  Kd7 {[%clk 0:01:08]} 26. Rf7+ {[%clk 0:00:49]}  Kd6 {[%clk 0:01:07]} 27. R7f2 {[%clk 0:00:37]}  d4 {[%clk 0:00:53]} 28. Qb7 {[%clk 0:00:32]}  Qd5 {[%clk 0:00:49]} 29. Qxd5+ {[%clk 0:00:31]}  Kxd5 {[%clk 0:00:50]} 30. g3 {[%clk 0:00:31]}  c5 {[%clk 0:00:46]} 31. Rf7 {[%clk 0:00:30]}  e5 {[%clk 0:00:43]} 32. Rd7+ {[%clk 0:00:26]}  Kc6 {[%clk 0:00:41]} 33. Re7 {[%clk 0:00:25]}  c4 {[%clk 0:00:39]} 34. Kg2 {[%clk 0:00:13]}  Kd6 {[%clk 0:00:30]} 35. Rff7 {[%clk 0:00:13]}  Kd5 {[%clk 0:00:22]} 36. Kf3 {[%clk 0:00:13]}  R5g6 {[%clk 0:00:16]} 37. Rd7+ {[%clk 0:00:13]}  Kc5 {[%clk 0:00:16]} 38. Rc7+ {[%clk 0:00:12]}  Kb4 {[%clk 0:00:14]} 39. a3+ {[%clk 0:00:11]}  Kb5 {[%clk 0:00:15]} 40. Rce7 {[%clk 0:00:10]}  Rg5 {[%clk 0:00:13]} 41. Rf6 {[%clk 0:00:09]}  Rd8 {[%clk 0:00:12]} 42. Rfe6 {[%clk 0:00:09]}  d3 {[%clk 0:00:12]} 43. Rxe5+ {[%clk 0:00:09]}  Rd5 {[%clk 0:00:11]} 44. Rxg5 {[%clk 0:00:09]}  Rxg5 {[%clk 0:00:11]} 45. cxd3 {[%clk 0:00:09]}  cxd3 {[%clk 0:00:12]} 46. Ke3 {[%clk 0:00:09]}  Rd5 {[%clk 0:00:13]} 47. Kd2 {[%clk 0:00:09]}  Kc4 {[%clk 0:00:13]} 48. Re4+ {[%clk 0:00:09]}  Kb3 {[%clk 0:00:13]} 49. Re3 {[%clk 0:00:09]}  Kc4 {[%clk 0:00:13]} 50. h4 {[%clk 0:00:08]}  Rb5 {[%clk 0:00:06]} 51. Rxd3 {[%clk 0:00:07]}  Rxb2+ {[%clk 0:00:06]} 52. Ke3 {[%clk 0:00:07]}  Rg2 {[%clk 0:00:07]} 53. Rd4+ {[%clk 0:00:06]}  Kc5 {[%clk 0:00:07]} 54. Rg4 {[%clk 0:00:06]}  Ra2 {[%clk 0:00:08]} 55. a4 {[%clk 0:00:06]}  Kd5 {[%clk 0:00:07]} 56. h5 {[%clk 0:00:05]}  Ke6 {[%clk 0:00:04]} 57. h6 {[%clk 0:00:06]}  Rh2 {[%clk 0:00:04]} 58. Rh4 {[%clk 0:00:06]}  Rxh4 {[%clk 0:00:03]} 59. gxh4 {[%clk 0:00:06]}  Kf6 {[%clk 0:00:04]} 60. Kd4 {[%clk 0:00:06]}  Kg6 {[%clk 0:00:02]} 61. Kc4 {[%clk 0:00:07]} 1-0


[Site "https://www.chess.com"]

[Event "Titled Tuesday Blitz June 13 Late 2023"]
[White "Bellissimo, Joseph F."]
[Black "caropawn10"]
[WhiteFideId "2609843"]
[WhiteElo "2103"]
[BlackElo "2723"]
[Result "1-0"]
[Round "2"]
[TimeControl "180+2"]
[Date "2023.06.13"]
[WhiteClock "0:00:54"]
[BlackClock "0:00:02"]
[Board "100"]

1. e4 {[%clk 0:03:00]}  c6 {[%clk 0:02:59]} 2. d4 {[%clk 0:03:00]}  d5 {[%clk 0:02:59]} 3. e5 {[%clk 0:03:01]}  Bf5 {[%clk 0:02:58]} 4. h4 {[%clk 0:03:01]}  h5 {[%clk 0:02:57]} 5. c4 {[%clk 0:03:01]}  e6 {[%clk 0:02:56]} 6. Nc3 {[%clk 0:03:01]}  Ne7 {[%clk 0:02:56]} 7. Bg5 {[%clk 0:03:01]}  dxc4 {[%clk 0:02:45]} 8. Bxc4 {[%clk 0:03:00]}  Nd7 {[%clk 0:02:44]} 9. Nge2 {[%clk 0:03:00]}  Nb6 {[%clk 0:02:45]} 10. Bd3 {[%clk 0:02:59]}  Qd7 {[%clk 0:02:31]} 11. Ng3 {[%clk 0:02:54]}  Bxd3 {[%clk 0:02:29]} 12. Qxd3 {[%clk 0:02:55]}  Ned5 {[%clk 0:02:29]} 13. a3 {[%clk 0:02:40]}  c5 {[%clk 0:02:26]} 14. dxc5 {[%clk 0:02:32]}  Bxc5 {[%clk 0:02:27]} 15. Nce4 {[%clk 0:02:32]}  Rc8 {[%clk 0:02:15]} 16. O-O {[%clk 0:02:30]}  O-O {[%clk 0:02:13]} 17. Nxh5 {[%clk 0:02:28]}  Nc4 {[%clk 0:01:57]} 18. Nxg7 {[%clk 0:02:09]}  Nxe5 {[%clk 0:01:38]} 19. Qg3 {[%clk 0:02:02]}  Ng6 {[%clk 0:01:29]} 20. Nh5 {[%clk 0:01:57]}  Bd4 {[%clk 0:01:23]} 21. Rad1 {[%clk 0:01:50]}  Be5 {[%clk 0:00:58]} 22. Nef6+ {[%clk 0:01:48]}  Kh8 {[%clk 0:00:49]} 23. Nxd7 {[%clk 0:01:46]}  Bxg3 {[%clk 0:00:49]} 24. Nxf8 {[%clk 0:01:46]}  Nxf8 {[%clk 0:00:34]} 25. Nxg3 {[%clk 0:01:43]}  Rc2 {[%clk 0:00:31]} 26. Rfe1 {[%clk 0:01:38]}  Kg7 {[%clk 0:00:26]} 27. b4 {[%clk 0:01:33]}  f6 {[%clk 0:00:24]} 28. Rxd5 {[%clk 0:01:21]}  exd5 {[%clk 0:00:22]} 29. Nh5+ {[%clk 0:01:21]}  Kg6 {[%clk 0:00:19]} 30. Nxf6 {[%clk 0:01:22]}  d4 {[%clk 0:00:18]} 31. g4 {[%clk 0:01:18]}  d3 {[%clk 0:00:17]} 32. Rd1 {[%clk 0:01:17]}  Ne6 {[%clk 0:00:18]} 33. Rxd3 {[%clk 0:01:16]}  Nxg5 {[%clk 0:00:18]} 34. hxg5 {[%clk 0:01:17]}  Kxg5 {[%clk 0:00:18]} 35. Rd6 {[%clk 0:01:10]}  Ra2 {[%clk 0:00:13]} 36. f3 {[%clk 0:01:05]}  Kf4 {[%clk 0:00:12]} 37. Rd3 {[%clk 0:01:00]}  b6 {[%clk 0:00:10]} 38. Ne4 {[%clk 0:00:59]}  a5 {[%clk 0:00:09]} 39. g5 {[%clk 0:00:58]}  axb4 {[%clk 0:00:08]} 40. axb4 {[%clk 0:00:58]}  Ra4 {[%clk 0:00:08]} 41. g6 {[%clk 0:00:57]}  Ra8 {[%clk 0:00:08]} 42. g7 {[%clk 0:00:56]}  b5 {[%clk 0:00:06]} 43. Nf6 {[%clk 0:00:53]}  Kg3 {[%clk 0:00:02]} 44. g8=Q+ {[%clk 0:00:54]} 1-0


[Site "https://www.chess.com"]

[Event "Titled Tuesday Blitz June 13 Late 2023"]
[White "Darini, Pouria"]
[Black "Kopczynski, Michal"]
[WhiteFideId "12502200"]
[BlackFideId "1124200"]
[WhiteElo "2482"]
[BlackElo "2212"]
[Result "1-0"]
[Round "2"]
[TimeControl "180+2"]
[Date "2023.06.13"]
[WhiteClock "0:00:38"]
[BlackClock "0:01:43"]
[Board "101"]

1. Nf3 {[%clk 0:03:00]}  d6 {[%clk 0:02:59]} 2. c4 {[%clk 0:03:01]}  g6 {[%clk 0:03:00]} 3. d4 {[%clk 0:03:02]}  Bg7 {[%clk 0:03:01]} 4. Nc3 {[%clk 0:03:02]}  Nf6 {[%clk 0:03:01]} 5. h4 {[%clk 0:03:03]}  O-O {[%clk 0:03:02]} 6. Bg5 {[%clk 0:03:02]}  h6 {[%clk 0:03:01]} 7. Bxf6 {[%clk 0:03:02]}  Bxf6 {[%clk 0:03:02]} 8. h5 {[%clk 0:03:01]}  g5 {[%clk 0:03:02]} 9. e3 {[%clk 0:03:01]}  c5 {[%clk 0:03:03]} 10. d5 {[%clk 0:02:57]}  e5 {[%clk 0:03:03]} 11. dxe6 {[%clk 0:02:48]}  Bxe6 {[%clk 0:02:58]} 12. Be2 {[%clk 0:02:34]}  Nc6 {[%clk 0:02:57]} 13. O-O {[%clk 0:02:35]}  Bxc3 {[%clk 0:02:48]} 14. bxc3 {[%clk 0:02:35]}  Ne5 {[%clk 0:02:49]} 15. Nd2 {[%clk 0:02:23]}  f5 {[%clk 0:02:43]} 16. f4 {[%clk 0:02:15]}  Ng4 {[%clk 0:02:38]} 17. Bxg4 {[%clk 0:02:10]}  fxg4 {[%clk 0:02:39]} 18. Ne4 {[%clk 0:01:39]}  Bxc4 {[%clk 0:02:38]} 19. Qxg4 {[%clk 0:01:39]}  Bxf1 {[%clk 0:02:36]} 20. Qe6+ {[%clk 0:01:32]}  Kg7 {[%clk 0:02:34]} 21. Qg6+ {[%clk 0:01:31]}  Kh8 {[%clk 0:02:34]} 22. Qxh6+ {[%clk 0:01:32]}  Kg8 {[%clk 0:02:35]} 23. Qg6+ {[%clk 0:01:32]}  Kh8 {[%clk 0:02:35]} 24. Rxf1 {[%clk 0:01:01]}  gxf4 {[%clk 0:02:35]} 25. Qh6+ {[%clk 0:01:00]}  Kg8 {[%clk 0:02:34]} 26. Qg6+ {[%clk 0:00:57]}  Kh8 {[%clk 0:02:35]} 27. Qh6+ {[%clk 0:00:47]}  Kg8 {[%clk 0:02:34]} 28. exf4 {[%clk 0:00:47]}  Qe8 {[%clk 0:02:11]} 29. Nf6+ {[%clk 0:00:40]}  Rxf6 {[%clk 0:02:11]} 30. Qxf6 {[%clk 0:00:41]}  Qe3+ {[%clk 0:01:57]} 31. Kh2 {[%clk 0:00:40]}  Rf8 {[%clk 0:01:53]} 32. Qg6+ {[%clk 0:00:39]}  Kh8 {[%clk 0:01:53]} 33. Rf3 {[%clk 0:00:39]}  Qc1 {[%clk 0:01:44]} 34. Qh6+ {[%clk 0:00:36]}  Kg8 {[%clk 0:01:45]} 35. Rg3+ {[%clk 0:00:36]}  Kf7 {[%clk 0:01:46]} 36. Rg7+ {[%clk 0:00:37]}  Ke8 {[%clk 0:01:43]} 37. Qe6+ {[%clk 0:00:38]} 1-0


[Site "https://www.chess.com"]

[Event "Titled Tuesday Blitz June 13 Late 2023"]
[White "Skvortsov, Andrei"]
[Black "Melikhov, Evgeny V."]
[WhiteFideId "24108600"]
[BlackFideId "4122046"]
[WhiteElo "2259"]
[BlackElo "2158"]
[Result "1-0"]
[Round "2"]
[TimeControl "180+2"]
[Date "2023.06.13"]
[WhiteClock "0:00:07"]
[BlackClock "0:00:01"]
[Board "102"]

1. d3 {[%clk 0:03:00]}  d5 {[%clk 0:02:58]} 2. f4 {[%clk 0:03:00]}  e5 {[%clk 0:02:55]} 3. fxe5 {[%clk 0:02:59]}  Nc6 {[%clk 0:02:55]} 4. Nf3 {[%clk 0:02:58]}  Bg4 {[%clk 0:02:55]} 5. Bf4 {[%clk 0:02:54]}  Nge7 {[%clk 0:02:47]} 6. d4 {[%clk 0:02:51]}  Ng6 {[%clk 0:02:44]} 7. Bg3 {[%clk 0:02:50]}  f6 {[%clk 0:02:21]} 8. exf6 {[%clk 0:02:50]}  Qxf6 {[%clk 0:02:21]} 9. Nc3 {[%clk 0:02:45]}  O-O-O {[%clk 0:02:19]} 10. e3 {[%clk 0:02:41]}  Bb4 {[%clk 0:02:17]} 11. Bd3 {[%clk 0:02:33]}  Rhe8 {[%clk 0:02:10]} 12. O-O {[%clk 0:02:31]}  Rxe3 {[%clk 0:02:02]} 13. Qd2 {[%clk 0:02:22]}  Rxf3 {[%clk 0:01:46]} 14. gxf3 {[%clk 0:02:20]}  Bh3 {[%clk 0:01:46]} 15. Rf2 {[%clk 0:02:12]}  Qxd4 {[%clk 0:01:45]} 16. Bxg6 {[%clk 0:01:37]}  hxg6 {[%clk 0:01:26]} 17. Qxd4 {[%clk 0:01:35]}  Nxd4 {[%clk 0:01:26]} 18. Kh1 {[%clk 0:01:20]}  c6 {[%clk 0:01:20]} 19. Be5 {[%clk 0:01:14]}  Bc5 {[%clk 0:01:17]} 20. Na4 {[%clk 0:01:08]}  Nb3 {[%clk 0:00:44]} 21. Nxc5 {[%clk 0:01:08]}  Nxa1 {[%clk 0:00:42]} 22. b4 {[%clk 0:01:00]}  Bf5 {[%clk 0:00:40]} 23. Bxa1 {[%clk 0:00:57]}  Re8 {[%clk 0:00:38]} 24. Bc3 {[%clk 0:00:57]}  b6 {[%clk 0:00:36]} 25. Nb3 {[%clk 0:00:53]}  Kd7 {[%clk 0:00:31]} 26. Kg2 {[%clk 0:00:52]}  Kd6 {[%clk 0:00:31]} 27. Nd4 {[%clk 0:00:48]}  c5 {[%clk 0:00:29]} 28. Nxf5+ {[%clk 0:00:47]}  gxf5 {[%clk 0:00:30]} 29. f4 {[%clk 0:00:44]}  d4 {[%clk 0:00:30]} 30. Bb2 {[%clk 0:00:42]}  Kd5 {[%clk 0:00:30]} 31. Rd2 {[%clk 0:00:40]}  Re1 {[%clk 0:00:27]} 32. bxc5 {[%clk 0:00:38]}  bxc5 {[%clk 0:00:27]} 33. c3 {[%clk 0:00:39]}  Re4 {[%clk 0:00:21]} 34. cxd4 {[%clk 0:00:38]}  cxd4 {[%clk 0:00:22]} 35. h3 {[%clk 0:00:38]}  Kc4 {[%clk 0:00:20]} 36. Rf2 {[%clk 0:00:22]}  g6 {[%clk 0:00:19]} 37. Bc1 {[%clk 0:00:20]}  d3 {[%clk 0:00:17]} 38. Bd2 {[%clk 0:00:20]}  Re6 {[%clk 0:00:13]} 39. Kf3 {[%clk 0:00:19]}  Ra6 {[%clk 0:00:13]} 40. Be3 {[%clk 0:00:20]}  Ra3 {[%clk 0:00:11]} 41. Rd2 {[%clk 0:00:19]}  Kc3 {[%clk 0:00:11]} 42. Rg2 {[%clk 0:00:16]}  Ra6 {[%clk 0:00:10]} 43. h4 {[%clk 0:00:16]}  Re6 {[%clk 0:00:09]} 44. Bd2+ {[%clk 0:00:14]}  Kc4 {[%clk 0:00:08]} 45. a3 {[%clk 0:00:13]}  Rb6 {[%clk 0:00:05]} 46. Ba5 {[%clk 0:00:12]}  Rb3 {[%clk 0:00:04]} 47. Bb4 {[%clk 0:00:11]}  Rb1 {[%clk 0:00:03]} 48. Rxg6 {[%clk 0:00:09]}  Rf1+ {[%clk 0:00:03]} 49. Ke3 {[%clk 0:00:08]}  Rh1 {[%clk 0:00:03]} 50. Rc6+ {[%clk 0:00:09]}  Kb5 {[%clk 0:00:03]} 51. Rc5+ {[%clk 0:00:09]}  Ka4 {[%clk 0:00:03]} 52. Kxd3 {[%clk 0:00:09]}  Rxh4 {[%clk 0:00:04]} 53. Rxf5 {[%clk 0:00:07]}  Rh3+ {[%clk 0:00:04]} 54. Kc4 {[%clk 0:00:07]}  Rh5 {[%clk 0:00:01]} 55. Rxh5 {[%clk 0:00:07]} 1-0


[Site "https://www.chess.com"]

[Event "Titled Tuesday Blitz June 13 Late 2023"]
[White "Slavin, Alexey"]
[Black "Goryachkina, Aleksandra"]
[WhiteFideId "24104388"]
[BlackFideId "4147103"]
[WhiteElo "2264"]
[BlackElo "2471"]
[Result "1/2-1/2"]
[Round "2"]
[TimeControl "180+2"]
[Date "2023.06.13"]
[WhiteClock "0:00:24"]
[BlackClock "0:00:21"]
[Board "103"]

1. e4 {[%clk 0:02:56]}  c6 {[%clk 0:02:59]} 2. d4 {[%clk 0:02:56]}  d5 {[%clk 0:02:59]} 3. e5 {[%clk 0:02:56]}  Bf5 {[%clk 0:02:59]} 4. Nf3 {[%clk 0:02:56]}  e6 {[%clk 0:02:59]} 5. Be2 {[%clk 0:02:56]}  Ne7 {[%clk 0:02:56]} 6. O-O {[%clk 0:02:56]}  c5 {[%clk 0:02:56]} 7. Be3 {[%clk 0:02:55]}  cxd4 {[%clk 0:02:47]} 8. Nxd4 {[%clk 0:02:55]}  Nbc6 {[%clk 0:02:46]} 9. f4 {[%clk 0:02:47]}  Nxd4 {[%clk 0:02:43]} 10. Bxd4 {[%clk 0:02:48]}  Nc6 {[%clk 0:02:43]} 11. Bf2 {[%clk 0:02:46]}  Be7 {[%clk 0:02:37]} 12. c3 {[%clk 0:02:46]}  O-O {[%clk 0:02:30]} 13. Nd2 {[%clk 0:02:46]}  h6 {[%clk 0:02:20]} 14. Nb3 {[%clk 0:02:36]}  Rc8 {[%clk 0:02:17]} 15. Qd2 {[%clk 0:02:32]}  a6 {[%clk 0:02:11]} 16. Rad1 {[%clk 0:02:30]}  b5 {[%clk 0:02:03]} 17. Nd4 {[%clk 0:02:18]}  Be4 {[%clk 0:01:55]} 18. Nxc6 {[%clk 0:02:06]}  Rxc6 {[%clk 0:01:55]} 19. Bd3 {[%clk 0:02:01]}  Bxd3 {[%clk 0:01:16]} 20. Qxd3 {[%clk 0:02:01]}  b4 {[%clk 0:01:16]} 21. cxb4 {[%clk 0:01:51]}  Bxb4 {[%clk 0:01:16]} 22. f5 {[%clk 0:01:50]}  exf5 {[%clk 0:01:14]} 23. Qxf5 {[%clk 0:01:38]}  Re6 {[%clk 0:00:47]} 24. Bd4 {[%clk 0:01:36]}  Qe7 {[%clk 0:00:43]} 25. Kh1 {[%clk 0:01:26]}  Bc5 {[%clk 0:00:41]} 26. Bc3 {[%clk 0:00:57]}  d4 {[%clk 0:00:38]} 27. Bxd4 {[%clk 0:00:56]}  Bxd4 {[%clk 0:00:38]} 28. Rxd4 {[%clk 0:00:56]}  Rxe5 {[%clk 0:00:39]} 29. Qd3 {[%clk 0:00:34]}  a5 {[%clk 0:00:39]} 30. Rdf4 {[%clk 0:00:32]}  Qe6 {[%clk 0:00:34]} 31. a3 {[%clk 0:00:27]}  Re2 {[%clk 0:00:33]} 32. b4 {[%clk 0:00:26]}  Re3 {[%clk 0:00:21]} 33. Qf5 {[%clk 0:00:24]} 1/2-1/2


[Site "https://www.chess.com"]

[Event "Titled Tuesday Blitz June 13 Late 2023"]
[White "Bernado Lopez, Roger"]
[Black "Deng, Henry"]
[WhiteFideId "24585009"]
[BlackFideId "30965454"]
[WhiteElo "2097"]
[BlackElo "2555"]
[Result "1-0"]
[Round "2"]
[TimeControl "180+2"]
[Date "2023.06.13"]
[WhiteClock "0:00:16"]
[BlackClock "0:00:43"]
[Board "109"]

1. e4 {[%clk 0:03:00]}  c5 {[%clk 0:02:58]} 2. Nf3 {[%clk 0:03:01]}  e6 {[%clk 0:02:57]} 3. d4 {[%clk 0:03:01]}  cxd4 {[%clk 0:02:58]} 4. Nxd4 {[%clk 0:03:02]}  Nf6 {[%clk 0:02:59]} 5. Nc3 {[%clk 0:03:02]}  Nc6 {[%clk 0:02:58]} 6. Nxc6 {[%clk 0:03:02]}  bxc6 {[%clk 0:02:58]} 7. e5 {[%clk 0:03:02]}  Nd5 {[%clk 0:02:59]} 8. Ne4 {[%clk 0:03:02]}  Bb7 {[%clk 0:02:58]} 9. Be2 {[%clk 0:03:02]}  c5 {[%clk 0:02:57]} 10. O-O {[%clk 0:03:00]}  Qc7 {[%clk 0:02:57]} 11. Nd6+ {[%clk 0:03:00]}  Bxd6 {[%clk 0:02:56]} 12. exd6 {[%clk 0:03:01]}  Qc6 {[%clk 0:02:57]} 13. Bf3 {[%clk 0:02:55]}  c4 {[%clk 0:02:52]} 14. Re1 {[%clk 0:02:50]}  Qxd6 {[%clk 0:02:46]} 15. b3 {[%clk 0:02:45]}  c3 {[%clk 0:02:40]} 16. a4 {[%clk 0:02:44]}  f6 {[%clk 0:02:11]} 17. Ba3 {[%clk 0:02:44]}  Qc6 {[%clk 0:02:10]} 18. Qd4 {[%clk 0:02:15]}  Kf7 {[%clk 0:02:09]} 19. Rad1 {[%clk 0:02:02]}  Qc7 {[%clk 0:02:07]} 20. Qh4 {[%clk 0:01:52]}  Rae8 {[%clk 0:01:56]} 21. Qc4 {[%clk 0:01:03]}  Rc8 {[%clk 0:01:53]} 22. Bxd5 {[%clk 0:00:47]}  Bxd5 {[%clk 0:01:47]} 23. Rxd5 {[%clk 0:00:46]}  exd5 {[%clk 0:01:23]} 24. Re7+ {[%clk 0:00:35]}  Kg6 {[%clk 0:01:22]} 25. Qg4+ {[%clk 0:00:35]}  Kh6 {[%clk 0:01:22]} 26. Qh4+ {[%clk 0:00:32]}  Kg6 {[%clk 0:01:20]} 27. Qg4+ {[%clk 0:00:32]}  Kh6 {[%clk 0:01:20]} 28. Qxg7+ {[%clk 0:00:31]}  Kh5 {[%clk 0:01:18]} 29. Re3 {[%clk 0:00:17]}  Qf4 {[%clk 0:00:44]} 30. Rh3+ {[%clk 0:00:16]}  Qh4 {[%clk 0:00:43]} 31. g4# {[%clk 0:00:16]} 1-0


[Site "https://www.chess.com"]